bitfinex/quotes_SOLUSD_20230111
["timestamp","ask_amount","ask_price","bid_price","bid_amount"]
[1673404661986,46.48,16.14,16.131,20.0]
[1673404662724,83.04911539,16.14,16.131,20.0]
[1673404663252,83.04911539,16.14,16.13,118.1942]
[1673404665036,83.04911539,16.14,16.131,20.0]
[1673404665982,83.04911539,16.14,16.13,118.1942]
[1673404666173,17.0,16.139,16.13,118.1942]
[1673404666383,46.49,16.138,16.13,118.1942]
[1673404666593,17.0,16.137,16.13,118.1942]
[1673404667012,53.56911539,16.137,16.13,118.1942]
[1673404670188,0.77303933,16.136,16.125,20.0]
[1673404670404,0.77303933,16.136,16.125,138.6639]
[1673404670710,36.56911539,16.136,16.125,138.6639]
[1673404670904,17.0,16.135,16.125,138.6639]
[1673404671538,53.56911539,16.136,16.125,138.6639]
[1673404674602,17.0,16.136,16.125,138.6639]
[1673404679957,63.49,16.137,16.125,138.6639]
[1673404680281,52.01949638,16.137,16.122,36.54]
[1673404680594,2.2403904,16.129,16.111,165.799]
[1673404680798,20.0,16.128,16.112,20.0]
[1673404681016,2.2403904,16.126,16.113,46.56]
[1673404681210,2.2403904,16.126,16.112,66.56]
[1673404683012,2.2403904,16.128,16.112,66.56]
[1673404683207,19.2403904,16.128,16.112,66.56]
[1673404683838,2.2403904,16.128,16.113,17.0]
[1673404684055,2.2403904,16.129,16.115,20.0]
[1673404684375,68.7503904,16.132,16.117,20.0]
[1673404684578,68.7503904,16.132,16.119,20.0]
[1673404684986,68.7503904,16.132,16.12,17.0]
[1673404685413,66.51,16.132,16.12,17.0]
[1673404685642,20.0,16.132,16.12,17.0]
[1673404686166,20.0,16.133,16.12,17.0]
[1673404686376,46.51,16.132,16.12,17.0]
[1673404686590,20.0,16.131,16.12,17.0]
[1673404687110,46.51,16.13,16.12,17.0]
[1673404687300,20.0,16.131,16.12,17.0]
[1673404687508,66.51,16.132,16.12,17.0]
[1673404688782,66.51,16.132,16.119,136.8212]
[1673404694480,66.51,16.132,16.119,116.8212]
[1673404694796,0.88133961,16.129,16.118,109.8903]
[1673404695109,0.93144663,16.126,16.118,109.8903]
[1673404695725,46.52,16.129,16.118,109.8903]
[1673404695945,17.0,16.128,16.118,109.8903]
[1673404696574,0.70615064,16.127,16.118,109.8903]
[1673404697527,20.70615064,16.127,16.118,109.8903]
[1673404697721,17.0,16.126,16.118,109.8903]
[1673404697937,0.86663275,16.125,16.111,66.57]
[1673404698257,0.86663275,16.125,16.113,113.7182]
[1673404698580,17.0,16.126,16.113,160.2782]
[1673404698769,0.83077026,16.125,16.113,160.2782]
[1673404699316,0.83077026,16.125,16.114,20.0]
[1673404699949,0.83077026,16.125,16.113,160.2782]
[1673404700135,20.83077026,16.125,16.113,113.7182]
[1673404700346,83.53,16.124,16.113,113.7182]
[1673404700577,21.26139115,16.123,16.113,113.7182]
[1673404701504,17.0,16.122,16.113,113.7182]
[1673404701714,20.0,16.121,16.113,113.7182]
[1673404707214,20.0,16.122,16.113,113.7182]
[1673404707608,0.73013005,16.124,16.113,113.7182]
[1673404707820,46.53,16.123,16.113,113.7182]
[1673404708028,20.0,16.122,16.113,113.7182]
[1673404708772,20.0,16.123,16.113,113.7182]
[1673404713307,20.0,16.123,16.114,20.0]
[1673404713719,20.0,16.124,16.114,20.0]
[1673404713929,0.77433641,16.123,16.114,20.0]
[1673404716673,0.77433641,16.123,16.113,113.7182]
[1673404718352,20.0,16.126,16.114,37.0]
[1673404719172,38.55825296,16.131,16.114,37.0]
[1673404719173,35.01949638,16.132,16.114,54.02322349]
[1673404719510,38.55825296,16.131,16.115,66.56]
[1673404720023,20.0,16.129,16.115,66.56]
[1673404720234,20.0,16.129,16.115,46.56]
[1673404720437,17.0,16.128,16.115,46.56]
[1673404720858,17.0,16.128,16.114,46.56]
[1673404721277,20.0,16.127,16.114,46.56]
[1673404721488,17.0,16.126,16.114,46.56]
[1673404721701,17.0,16.126,16.113,113.7182]
[1673404724440,17.0,16.126,16.114,20.0]
[1673404726327,17.0,16.127,16.114,20.0]
[1673404734541,17.0,16.127,16.115,46.56]
[1673404738119,17.0,16.127,16.114,66.56]
[1673404740223,17.0,16.128,16.114,66.56]
[1673404743894,17.0,16.128,16.114,46.56]
[1673404744120,17.0,16.128,16.113,113.7182]
[1673404744121,66.52,16.127,16.113,113.7182]
[1673404744313,17.0,16.126,16.113,160.2782]
[1673404745044,46.53,16.125,16.113,160.2782]
[1673404745257,17.0,16.124,16.113,160.2782]
[1673404745466,63.52,16.126,16.114,20.0]
[1673404745467,17.0,16.126,16.114,20.0]
[1673404747460,17.0,16.126,16.113,160.2782]
[1673404747683,17.0,16.126,16.114,20.0]
[1673404749272,17.0,16.126,16.115,46.56]
[1673404749459,17.0,16.127,16.115,46.56]
[1673404751896,46.52,16.126,16.114,20.0]
[1673404752092,17.0,16.125,16.114,20.0]
[1673404752722,17.0,16.126,16.113,160.2782]
[1673404752926,20.0,16.124,16.111,46.57]
[1673404753141,83.53,16.123,16.109,46.57]
[1673404753366,83.53,16.123,16.108,185.3539]
[1673404753780,102.08825296,16.123,16.108,185.3539]
[1673404755560,83.53,16.123,16.111,20.0]
[1673404760176,83.53,16.123,16.108,185.3539]
[1673404761141,102.08825296,16.123,16.108,138.7739]
[1673404762928,102.08825296,16.123,16.111,20.0]
[1673404763668,26.24,16.12,16.109,20.0]
[1673404763875,17.0,16.119,16.109,20.0]
[1673404764279,63.54,16.119,16.109,20.0]
[1673404764491,17.0,16.119,16.109,20.0]
[1673404765144,63.54,16.119,16.109,20.0]
[1673404765452,17.0,16.119,16.108,138.7739]
[1673404765859,63.54,16.119,16.108,138.7739]
[1673404781533,63.54,16.119,16.111,20.0]
[1673404784266,46.54,16.119,16.111,20.0]
[1673404784482,26.24,16.12,16.111,20.0]
[1673404785745,17.0,16.119,16.111,20.0]
[1673404786059,63.54,16.119,16.111,20.0]
[1673404786377,20.0,16.118,16.108,118.7739]
[1673404786564,63.55,16.117,16.108,118.7739]
[1673404787209,63.55,16.117,16.102,66.59]
[1673404787427,82.10825296,16.117,16.102,20.0]
[1673404787624,82.10825296,16.117,16.103,66.59]
[1673404788039,82.10825296,16.117,16.105,20.0]
[1673404789944,63.55,16.117,16.105,20.0]
[1673404793725,63.55,16.117,16.104,103.6287]
[1673404793726,1.0320317,16.115,16.104,103.6287]
[1673404793943,1.0320317,16.113,16.104,103.6287]
[1673404794141,1.0320317,16.111,16.104,103.6287]
[1673404794345,1.0320317,16.109,16.104,103.6287]
[1673404794565,1.0320317,16.107,16.104,103.6287]
[1673404794972,18.0320317,16.107,16.104,103.6287]
[1673404795196,18.0320317,16.107,16.101,115.5926]
[1673404795398,17.0,16.107,16.101,115.5926]
[1673404796890,17.0,16.108,16.101,115.5926]
[1673404797085,46.58,16.107,16.101,115.5926]
[1673404797296,17.0,16.106,16.101,115.5926]
[1673404797929,17.0,16.107,16.101,115.5926]
[1673404798773,0.77557104,16.106,16.101,115.5926]
[1673404798981,17.0,16.107,16.101,115.5926]
[1673404802144,46.58,16.106,16.101,115.5926]
[1673404802333,17.0,16.105,16.101,115.5926]
[1673404803706,66.59,16.104,16.085,46.64]
[1673404803914,66.59,16.104,16.08,26.08]
[1673404803915,26.24,16.1,16.09,116.3057]
[1673404804125,0.98304717,16.098,16.092,108.5738]
[1673404804449,17.98304717,16.098,16.092,108.5738]
[1673404805599,0.98304717,16.098,16.092,108.5738]
[1673404806219,20.98304717,16.101,16.092,108.5738]
[1673404807291,17.0,16.1,16.092,108.5738]
[1673404807484,0.98304717,16.099,16.092,108.5738]
[1673404810333,63.6,16.1,16.092,108.5738]
[1673404810966,0.77244324,16.099,16.092,108.5738]
[1673404812561,20.0,16.106,16.092,108.5738]
[1673404812768,0.74456229,16.105,16.092,108.5738]
[1673404813081,0.89396126,16.102,16.092,108.5738]
[1673404813271,0.92138581,16.1,16.092,108.5738]
[1673404813692,37.92138581,16.1,16.092,108.5738]
[1673404814958,20.92138581,16.1,16.092,108.5738]
[1673404815276,20.0,16.104,16.093,20.0]
[1673404815695,0.71268521,16.103,16.093,20.0]
[1673404816428,47.30268521,16.103,16.093,20.0]
[1673404816639,0.85874103,16.101,16.093,20.0]
[1673404820432,20.0,16.102,16.093,20.0]
[1673404820650,46.59,16.104,16.093,20.0]
[1673404820651,46.57,16.109,16.093,20.0]
[1673404820855,46.57,16.109,16.094,63.62]
[1673404821059,26.46,16.11,16.095,20.0]
[1673404821257,26.46,16.11,16.097,20.0]
[1673404821677,20.0,16.108,16.096,155.2661]
[1673404821898,20.0,16.106,16.096,108.6561]
[1673404822108,17.0,16.105,16.096,108.6561]
[1673404822524,17.0,16.106,16.096,108.6561]
[1673404823198,17.0,16.106,16.097,20.0]
[1673404828234,20.0,16.105,16.096,88.6561]
[1673404828448,63.59,16.104,16.096,88.6561]
[1673404828658,20.0,16.103,16.096,88.6561]
[1673404828865,63.59,16.102,16.096,88.6561]
[1673404829078,20.0,16.101,16.096,88.6561]
[1673404829397,20.0,16.101,16.096,28.6561]
[1673404829815,20.0,16.101,16.09,20.0]
[1673404830137,20.0,16.1,16.089,6.0121754]
[1673404830484,63.6,16.099,16.089,6.0121754]
[1673404831270,46.6,16.1,16.089,6.0121754]
[1673404831477,20.0,16.101,16.089,6.0121754]
[1673404831687,17.0,16.1,16.089,6.0121754]
[1673404833613,17.0,16.101,16.089,6.0121754]
[1673404833798,20.0,16.1,16.089,6.0121754]
[1673404834654,20.0,16.1,16.089,116.7966754]
[1673404835270,17.0,16.099,16.089,116.7966754]
[1673404846956,204.0,16.099,16.089,6.0121754]
[1673404847170,20.0,16.096,16.077,20.0]
[1673404847381,26.24,16.09,16.077,20.0]
[1673404847577,1.27724436,16.089,16.077,16.0121754]
[1673404849286,21.27724436,16.092,16.077,16.0121754]
[1673404849502,20.0,16.09,16.077,16.0121754]
[1673404849685,1.27880052,16.089,16.077,16.0121754]
[1673404850422,18.27880052,16.09,16.077,16.0121754]
[1673404851276,1.27880052,16.09,16.077,16.0121754]
[1673404851467,21.27880052,16.09,16.078,63.66]
[1673404851679,21.27880052,16.09,16.079,20.0]
[1673404853045,1.27880052,16.09,16.079,20.0]
[1673404854106,1.27880052,16.09,16.08,17.0]
[1673404854964,1.27880052,16.091,16.08,17.0]
[1673404856744,1.27880052,16.091,16.079,20.0]
[1673404856745,20.0,16.09,16.078,20.0]
[1673404856948,18.27880052,16.089,16.078,20.0]
[1673404858213,1.27880052,16.089,16.078,20.0]
[1673404858431,47.90880052,16.089,16.078,20.0]
[1673404858739,1.27880052,16.09,16.078,66.66]
[1673404858949,21.27880052,16.09,16.078,20.0]
[1673404859476,20.0,16.09,16.078,20.0]
[1673404859678,20.0,16.091,16.078,20.0]
[1673404859890,46.63,16.09,16.078,20.0]
[1673404862300,0.71110702,16.089,16.078,20.0]
[1673404862840,0.71110702,16.089,16.079,17.0]
[1673404863054,20.0,16.091,16.079,17.0]
[1673404865766,46.63,16.09,16.079,17.0]
[1673404867356,26.46,16.1,16.08,92.66]
[1673404867566,26.46,16.1,16.082,20.0]
[1673404867888,111.3156,16.101,16.082,20.0]
[1673404867889,111.3156,16.101,16.083,289.4393]
[1673404868101,66.6,16.1,16.083,289.4393]
[1673404868623,66.6,16.1,16.084,37.02322349]
[1673404868808,66.6,16.1,16.085,63.64]
[1673404869019,66.6,16.1,16.086,20.0]
[1673404869337,66.6,16.1,16.087,63.64]
[1673404869652,66.6,16.1,16.088,20.0]
[1673404872621,20.0,16.1,16.09,20.0]
[1673404872799,20.0,16.1,16.091,17.0]
[1673404873018,20.0,16.105,16.091,17.0]
[1673404873221,63.59,16.104,16.091,17.0]
[1673404873442,20.0,16.103,16.091,17.0]
[1673404873656,46.59,16.102,16.091,17.0]
[1673404874172,20.0,16.101,16.091,17.0]
[1673404874597,20.0,16.102,16.091,17.0]
[1673404874811,187.0,16.122,16.092,66.62]
[1673404875026,20.0,16.112,16.094,20.0]
[1673404875241,20.0,16.112,16.095,46.61]
[1673404875452,20.0,16.109,16.095,46.61]
[1673404875673,46.58,16.108,16.094,66.62]
[1673404875987,46.57,16.109,16.094,20.0]
[1673404876184,46.57,16.109,16.095,63.61]
[1673404876397,46.57,16.109,16.096,20.0]
[1673404876617,46.57,16.109,16.097,17.0]
[1673404877967,46.57,16.109,16.096,111.8253]
[1673404878198,46.57,16.109,16.097,20.0]
[1673404881968,46.55,16.116,16.098,17.0]
[1673404882179,20.0,16.115,16.098,17.0]
[1673404882393,20.0,16.113,16.098,17.0]
[1673404882713,66.56,16.112,16.098,17.0]
[1673404889792,66.56,16.112,16.099,20.0]
[1673404890092,66.56,16.112,16.1,17.0]
[1673404890734,66.56,16.112,16.1,1.8659124]
[1673404890923,66.56,16.112,16.099,4.72863419]
[1673404891448,20.0,16.111,16.097,20.0]
[1673404891669,83.57,16.11,16.097,20.0]
[1673404895772,83.57,16.11,16.096,111.8253]
[1673404895951,83.57,16.11,16.097,17.0]
[1673404896716,66.57,16.11,16.097,17.0]
[1673404897124,20.0,16.11,16.098,20.0]
[1673404897342,66.56,16.114,16.098,20.0]
[1673404897661,17.0,16.113,16.098,20.0]
[1673404897848,66.56,16.112,16.098,20.0]
[1673404898084,17.0,16.111,16.097,37.0]
[1673404898388,66.57,16.11,16.097,37.0]
[1673404901440,66.57,16.11,16.097,17.0]
[1673404902075,66.57,16.11,16.097,37.0]
[1673404910565,20.0,16.109,16.097,17.0]
[1673404910800,46.58,16.108,16.096,111.8253]
[1673404910992,63.58,16.108,16.096,111.8253]
[1673404912572,17.0,16.108,16.097,20.0]
[1673404913743,17.0,16.108,16.096,111.8253]
[1673404913946,46.58,16.107,16.096,111.8253]
[1673404914157,17.0,16.106,16.096,111.8253]
[1673404916470,20.0,16.108,16.096,111.8253]
[1673404916471,63.58,16.107,16.096,111.8253]
[1673404920360,17.0,16.107,16.096,111.8253]
[1673404920577,17.0,16.108,16.096,111.8253]
[1673404920765,46.58,16.107,16.096,111.8253]
[1673404920976,17.0,16.106,16.096,111.8253]
[1673404921396,46.57,16.109,16.096,111.8253]
[1673404921717,17.0,16.108,16.097,20.0]
[1673404922986,46.57,16.109,16.096,111.8253]
[1673404923198,20.0,16.108,16.092,181.7642]
[1673404923407,46.58,16.107,16.092,135.1442]
[1673404923821,26.24,16.1,16.09,113.9204]
[1673404924144,46.6,16.099,16.09,113.9204]
[1673404924970,46.6,16.099,16.086,20.0]
[1673404925194,17.0,16.098,16.086,20.0]
[1673404938444,46.6,16.099,16.087,17.0]
[1673404938665,47.29993209,16.104,16.087,63.64]
[1673404938865,20.0,16.103,16.088,17.02322349]
[1673404939187,46.59,16.102,16.089,46.63]
[1673404939399,20.0,16.101,16.089,46.63]
[1673404939607,20.0,16.101,16.089,63.65322349]
[1673404939818,20.0,16.101,16.09,20.0]
[1673404940032,20.0,16.104,16.091,17.0]
[1673404940221,46.59,16.103,16.091,17.0]
[1673404940427,35.01914706,16.106,16.092,66.62]
[1673404940643,46.58,16.108,16.092,83.64322349]
[1673404940865,46.57,16.109,16.094,20.0]
[1673404941180,26.26,16.11,16.096,20.0]
[1673404941408,26.26,16.11,16.097,46.61]
[1673404941804,17.0,16.109,16.097,46.61]
[1673404946128,26.26,16.11,16.097,46.61]
[1673404946837,26.26,16.11,16.098,20.0]
[1673404947046,26.26,16.11,16.099,46.6]
[1673404947383,17.0,16.109,16.099,46.6]
[1673404947704,26.26,16.11,16.1,20.0]
[1673404948754,46.56,16.112,16.099,46.6]
[1673404948964,20.0,16.111,16.099,46.6]
[1673404949488,20.0,16.111,16.098,66.6]
[1673404950015,20.0,16.111,16.099,17.0]
[1673404950205,20.0,16.111,16.098,66.6]
[1673404950415,66.56,16.112,16.098,66.6]
[1673404950628,17.0,16.111,16.098,66.6]
[1673404951166,20.0,16.11,16.098,66.6]
[1673404951794,17.0,16.111,16.098,66.6]
[1673404951795,69.5636,16.119,16.098,83.62322349]
[1673404952115,69.5636,16.119,16.1,26.12]
[1673404952308,69.5636,16.119,16.101,312.9119]
[1673404952523,69.5636,16.119,16.101,329.93512349]
[1673404952727,69.5636,16.119,16.101,312.9119]
[1673404952943,116.1036,16.119,16.102,20.0]
[1673404953264,116.1036,16.119,16.103,46.59]
[1673404953480,116.1036,16.119,16.104,20.0]
[1673404953792,116.1036,16.119,16.105,46.58]
[1673404953979,17.0,16.118,16.106,20.0]
[1673404956106,46.55,16.117,16.106,20.0]
[1673404956506,46.55,16.118,16.106,20.0]
[1673404957665,17.0,16.117,16.106,20.0]
[1673404958409,26.24,16.12,16.107,17.0]
[1673404958628,26.24,16.12,16.106,20.0]
[1673404958836,46.54,16.119,16.107,46.58]
[1673404959680,26.24,16.12,16.108,37.0]
[1673404961467,46.54,16.121,16.108,37.0]
[1673404961660,37.0,16.12,16.108,20.0]
[1673404961881,46.54,16.119,16.108,20.0]
[1673404966082,37.0,16.12,16.108,20.0]
[1673404966842,46.54,16.119,16.107,117.4298]
[1673404967161,17.0,16.118,16.107,117.4298]
[1673404967341,46.55,16.117,16.107,117.4298]
[1673404967549,17.0,16.116,16.107,117.4298]
[1673404968517,17.0,16.116,16.104,20.0]
[1673404968727,17.0,16.116,16.09,46.24]
[1673404968728,26.24,16.11,16.09,46.24]
[1673404968934,46.57,16.109,16.097,109.2468]
[1673404969142,17.0,16.108,16.097,105.8368]
[1673404970390,46.58,16.107,16.097,105.8368]
[1673404970613,17.0,16.106,16.097,105.8368]
[1673404977660,26.24,16.11,16.098,20.0]
[1673404987985,46.56,16.113,16.1,20.0]
[1673404988194,20.0,16.112,16.101,17.0]
[1673404988721,20.0,16.113,16.101,17.0]
[1673404992724,20.0,16.113,16.102,20.0]
[1673404993023,20.0,16.114,16.102,66.59]
[1673404993340,20.0,16.115,16.102,66.59]
[1673404993527,20.0,16.114,16.101,63.6]
[1673404993736,66.56,16.114,16.101,17.0]
[1673404993964,17.0,16.113,16.101,17.0]
[1673404994158,20.0,16.112,16.101,17.0]
[1673405010987,46.57,16.111,16.1,17.0]
[1673405011200,20.0,16.11,16.1,17.0]
[1673405011404,20.0,16.11,16.098,46.6]
[1673405011615,46.57,16.109,16.097,105.8368]
[1673405011825,46.57,16.11,16.097,105.8368]
[1673405012676,46.57,16.11,16.098,17.0]
[1673405013423,46.57,16.11,16.098,37.0]
[1673405017004,17.0,16.109,16.098,20.0]
[1673405018367,17.0,16.109,16.097,105.8368]
[1673405020045,20.0,16.108,16.097,105.8368]
[1673405020661,37.0,16.109,16.097,105.8368]
[1673405021621,20.0,16.108,16.097,105.8368]
[1673405021815,17.0,16.107,16.094,46.62]
[1673405022029,46.58,16.106,16.093,46.62]
[1673405022238,17.0,16.105,16.093,46.62]
[1673405022868,17.0,16.106,16.093,46.62]
[1673405024249,17.0,16.106,16.093,66.62]
[1673405025306,17.0,16.106,16.094,20.0]
[1673405034118,46.58,16.108,16.095,17.0]
[1673405034328,108.0475148,16.111,16.096,20.0]
[1673405034329,17.0,16.107,16.096,20.0]
[1673405034549,17.0,16.108,16.096,20.0]
[1673405037186,72.81,16.11,16.097,17.0]
[1673405037380,72.81,16.11,16.097,63.61]
[1673405038445,17.0,16.109,16.097,63.61]
[1673405038755,72.81,16.11,16.098,20.0]
[1673405041067,72.81,16.11,16.097,63.61]
[1673405041782,17.0,16.109,16.097,63.61]
[1673405043487,17.0,16.109,16.097,46.61]
[1673405043693,46.58,16.108,16.094,66.62]
[1673405043905,17.0,16.107,16.094,66.62]
[1673405044317,20.0,16.107,16.094,20.0]
[1673405044630,17.0,16.106,16.094,20.0]
[1673405045590,46.58,16.105,16.094,66.62]
[1673405045781,17.0,16.104,16.094,20.0]
[1673405050007,17.0,16.104,16.093,46.62]
[1673405050323,17.0,16.104,16.093,20.0]
[1673405050540,63.58,16.105,16.093,20.0]
[1673405055350,63.58,16.105,16.093,46.62]
[1673405055891,63.58,16.105,16.092,220.4474]
[1673405057344,17.0,16.105,16.092,220.4474]
[1673405058306,17.0,16.105,16.093,46.62]
[1673405059472,17.0,16.106,16.094,20.0]
[1673405059882,63.58,16.107,16.094,20.0]
[1673405062620,63.58,16.107,16.094,18.5]
[1673405063277,63.58,16.107,16.093,66.62]
[1673405063581,20.0,16.106,16.092,220.4474]
[1673405063786,20.0,16.104,16.092,220.4474]
[1673405063997,26.24,16.1,16.092,112.0303]
[1673405064329,0.79620535,16.098,16.092,112.0303]
[1673405064934,17.0,16.099,16.092,112.0303]
[1673405065150,0.74897422,16.098,16.092,112.0303]
[1673405069890,17.0,16.099,16.092,112.0303]
[1673405070081,17.0,16.1,16.092,112.0303]
[1673405072304,17.0,16.101,16.092,112.0303]
[1673405072518,20.0,16.1,16.092,112.0303]
[1673405072711,17.0,16.099,16.092,112.0303]
[1673405075658,139.3066,16.11,16.092,112.0303]
[1673405075876,139.3066,16.11,16.093,46.62]
[1673405076079,20.0,16.109,16.094,20.0]
[1673405076289,20.0,16.109,16.095,46.61]
[1673405076499,46.58,16.108,16.095,46.61]
[1673405076822,17.0,16.107,16.095,46.61]
[1673405082505,46.58,16.108,16.096,20.0]
[1673405082719,139.3066,16.11,16.096,20.0]
[1673405082909,20.0,16.109,16.097,46.61]
[1673405083971,17.0,16.108,16.097,46.61]
[1673405084718,56.17454916,16.112,16.097,46.61]
[1673405084935,46.56,16.115,16.098,17.0]
[1673405085121,20.0,16.112,16.099,46.6]
[1673405085337,20.0,16.112,16.1,20.0]
[1673405086702,20.0,16.114,16.1,20.0]
[1673405086915,17.0,16.113,16.1,20.0]
[1673405087123,20.0,16.112,16.1,20.0]
[1673405090384,20.0,16.112,16.101,17.0]
[1673405090593,20.0,16.113,16.101,17.0]
[1673405090807,20.0,16.113,16.102,20.0]
[1673405090997,20.0,16.115,16.102,20.0]
[1673405091215,46.56,16.114,16.102,20.0]
[1673405091444,20.0,16.113,16.102,20.0]
[1673405092065,66.56,16.114,16.101,63.6]
[1673405092703,20.0,16.113,16.101,63.6]
[1673405092895,37.0,16.113,16.098,46.6]
[1673405093107,20.0,16.112,16.098,46.6]
[1673405093360,20.0,16.11,16.097,46.61]
[1673405094402,63.57,16.111,16.097,46.61]
[1673405094625,20.0,16.11,16.098,17.0]
[1673405097566,20.0,16.11,16.099,20.0]
[1673405097784,20.0,16.11,16.099,66.6]
[1673405097993,20.0,16.113,16.099,66.6]
[1673405098188,17.0,16.112,16.099,66.6]
[1673405098397,20.0,16.111,16.099,66.6]
[1673405104498,46.56,16.114,16.101,20.0]
[1673405104716,46.55,16.116,16.102,83.59]
[1673405104932,46.55,16.116,16.103,20.0]
[1673405105326,46.55,16.117,16.105,20.0]
[1673405105551,46.55,16.118,16.105,20.0]
[1673405107766,17.0,16.117,16.105,20.0]
[1673405112793,17.0,16.117,16.104,46.59]
[1673405114384,17.0,16.117,16.105,20.0]
[1673405119641,46.55,16.118,16.106,63.58]
[1673405119834,74.5316,16.119,16.107,20.0]
[1673405120046,74.5316,16.119,16.108,63.58]
[1673405120378,46.54,16.122,16.109,20.0]
[1673405120589,34.85843654,16.126,16.11,17.0]
[1673405120590,20.0,16.121,16.11,17.0]
[1673405121204,40.0,16.124,16.11,2.5948928]
[1673405121414,46.53,16.123,16.109,20.0]
[1673405121629,20.0,16.122,16.109,20.0]
[1673405122365,46.54,16.121,16.11,46.57]
[1673405122571,20.0,16.12,16.109,66.57]
[1673405123123,20.0,16.122,16.109,66.57]
[1673405123330,20.0,16.122,16.11,17.0]
[1673405130270,20.0,16.122,16.109,17.0]
[1673405131743,20.0,16.122,16.11,46.57]
[1673405132057,20.0,16.122,16.111,17.0]
[1673405132457,20.0,16.123,16.111,17.0]
[1673405135424,20.0,16.123,16.109,46.57]
[1673405135618,20.0,16.122,16.11,17.0]
[1673405135831,20.0,16.121,16.11,17.0]
[1673405139518,20.0,16.121,16.109,17.0]
[1673405153911,20.0,16.121,16.107,46.58]
[1673405154227,20.0,16.121,16.108,17.0]
[1673405154446,20.0,16.12,16.108,17.0]
[1673405160756,66.54,16.121,16.108,17.0]
[1673405160959,20.0,16.121,16.109,20.0]
[1673405161171,20.0,16.122,16.109,20.0]
[1673405161486,46.54,16.121,16.108,37.0]
[1673405161701,20.0,16.12,16.108,17.0]
[1673405162129,20.0,16.122,16.108,17.0]
[1673405162435,46.54,16.121,16.108,17.0]
[1673405162623,20.0,16.12,16.108,17.0]
[1673405163277,20.0,16.122,16.108,17.0]
[1673405163467,46.54,16.121,16.108,17.0]
[1673405163676,20.0,16.12,16.108,17.0]
[1673405164097,20.0,16.122,16.108,17.0]
[1673405164319,46.54,16.121,16.108,17.0]
[1673405164522,20.0,16.12,16.108,17.0]
[1673405164733,20.0,16.12,16.108,37.0]
[1673405165261,66.54,16.121,16.108,37.0]